Cogmind - Beta 9.3 --- EXPLORER MODE // 2019.12.25 @ 00:16:03 // Winter2019/RPGLIKE Player: K.Ioz Result: Destroyed by S-10 Pest with Light Assault Rifle Performance ------------- Evolutions (2) 1000 Regions Visited (5) 1000 Robots Destroyed (21) 105 Value Destroyed (448) 448 Prototype IDs (6) 120 Alien Tech Used (0) 0 Bonus (7) 7 TOTAL SCORE: 2680 Bonus ------- Follower Combat Kills 7 Cogmind --------- Core Integrity 0/650 Matter 290/300 Energy 240/240 System Corruption 0% Temperature Cool (0) Movement Treading (170) Location -8/Materials Parts ------- > --- POWER (1) -------- Nuclear Core > --- PROPULSION (1) --- Armored Treads > --- UTILITY (3) ------ Experimental Sensor Array Terrain Scanner > --- WEAPON (3) ------- Assault Rifle > --- INVENTORY (0) ---- (None) Peak State ------------ > --- POWER ------------ Nuclear Core > --- PROPULSION ------- Armored Treads > --- UTILITY ---------- Experimental Sensor Array Terrain Scanner > --- WEAPON ----------- Assault Rifle > --- INVENTORY -------- (None) [Rating: 14] Favorites ----------- Power Light Nuclear Core Engine Ion Engine Power Core Light Nuclear Core Propulsion Light Treads Treads Light Treads Utility Experimental Sensor Array Device Experimental Sensor Array Protection Light Armor Plating Weapon Assault Rifle Ballistic Gun Assault Rifle Build | -11 -10 -10 -10 -9 -8 ------- Run | Scr Mat Min Exi Min Mat Slots Evolved 4 | . . 1 . 1 2 Power . | . . . . . . Propulsion . | . . . . . . Utility 2 | . . 1 . 1 . Weapon 2 | . . . . . 2 Parts Attached 15 | 4 1 5 3 . 2 Power 7 | 1 1 1 3 . 1 Engine 2 | 1 1 . . . . Core 5 | . . 1 3 . 1 Reactor . | . . . . . . Propulsion 2 | 1 . . . . 1 Treads 2 | 1 . . . . 1 Leg . | . . . . . . Wheel . | . . . . . . Hover . | . . . . . . Flight . | . . . . . . Utility 5 | 1 . 4 . . . Device 3 | . . 3 . . . Storage . | . . . . . . Processor . | . . . . . . Hackware . | . . . . . . Protection 2 | 1 . 1 . . . Artifact . | . . . . . . Weapon 1 | 1 . . . . . Energy Gun . | . . . . . . Energy Cannon . | . . . . . . Ballistic Gun 1 | 1 . . . . . Ballistic Cannon . | . . . . . . Launcher . | . . . . . . Special Weapon . | . . . . . . Impact Weapon . | . . . . . . Slashing Weapon . | . . . . . . Piercing Weapon . | . . . . . . Special Melee Weapon . | . . . . . . Unidentified Prototypes 1 | . . 1 . . . Parts Lost . | . . . . . . Power . | . . . . . . Propulsion . | . . . . . . Utility . | . . . . . . Weapon . | . . . . . . Highest Loss Streak . | . . . . . . Average Slot Usage (%) 97 | . 100 96 99 83 63 Engine 5 | . 25 11 . . . Core 14 | . . 11 19 16 12 Treads 20 | . 25 23 20 16 12 Device 29 | . . 19 40 33 25 Protection 5 | . 25 7 . . . Ballistic Gun 20 | . 25 23 20 16 12 Naked Turns . | . . . . . . Heaviest Build 11 | 8 10 11 9 9 11 Greatest Support 20 | 20 20 20 20 20 20 Greatest Overweight (x) 1 | 1 . . . . . Average Overweight (x) . | . . . . . . Largest Inventory Capacity . | . . . . . . Average Capacity . | . . . . . . Most Carried . | . . . . . . Average Carried . | . . . . . . Final Capacity . | . . . . . . Final Carried . | . . . . . . Class Distribution -------------------- 100% | Hacker-Mutant Dominant Class ---------------- Hacker-Mutant | -10/Materials Hacker-Mutant | -10/Mines Hacker-Mutant | -10/Exiles Hacker-Mutant | -9/Mines Hacker-Mutant | -8/Materials Resources | -11 -10 -10 -10 -9 -8 ----------- Run | Scr Mat Min Exi Min Mat Matter Collected 673 | 240 130 191 . 102 10 Remotely . | . . . . . . Salvage Created 382 | . 138 126 . 118 . Parts 38 | . 20 12 . 6 . Haulers Intercepted . | . . . . . . Recyclers Shooed . | . . . . . . Parts Field Recycled . | . . . . . . Retrieved Matter . | . . . . . . Parts Self-Destructed . | . . . . . . Prevented . | . . . . . . Kills | -11 -10 -10 -10 -9 -8 ------- Run | Scr Mat Min Exi Min Mat Combat Hostiles Destroyed 16 | . 6 8 . 2 . Guns 16 | . 6 8 . 2 . Classes Destroyed 7 | . 4 3 . . . Worker 2 | . 1 1 . . . Builder 1 | . . 1 . . . Watcher 2 | . 2 . . . . Swarmer 6 | . 4 2 . . . Grunt 6 | . 2 2 . 2 . Demolisher 2 | . . 2 . . . Assembled 2 | . . 2 . . . Best Kill Streak 2 | . 2 2 . 2 . Combat Bots Only 2 | . 2 2 . 2 . Max Kills in Single Turn 1 | . 1 1 . 1 . Gunslinging . | . . . . . . Exploded . | . . . . . . Melee . | . . . . . . Uniques/NPCs Destroyed . | . . . . . . Combat | -11 -10 -10 -10 -9 -8 -------- Run | Scr Mat Min Exi Min Mat Damage Taken 1204 | . 148 888 . 128 40 Core 962 | . 114 714 . 100 34 Absorbed by Shields . | . . . . . . Redirected to Core 697 | . 99 515 . 69 14 Core Remaining (%) 52 | 100 . . . 4 . Volleys Fired 111 | . 43 44 1 23 . Largest 1 | . 1 1 1 1 . Hottest 20 | . 20 20 20 20 . Shots Fired 111 | . 43 44 1 23 . Gun 111 | . 43 44 1 23 . Cannon . | . . . . . . Launcher . | . . . . . . Special . | . . . . . . Kinetic 111 | . 43 44 1 23 . Thermal . | . . . . . . Explosive . | . . . . . . Electromagnetic . | . . . . . . Robot Hit Streak 32 | . 14 18 . 32 . Robot Miss Streak 2 | . 2 1 . . . Penetration Max . | . . . . . . Secondary Targets . | . . . . . . Shots Hit Robots 96 | . 32 41 . 23 . Core Hits 42 | . 14 22 . 6 . Critical Hits 2 | . 1 1 . . . Critical Kills 1 | . 1 . . . . Critical Parts Destroyed 1 | . . 1 . . . Melee Attacks . | . . . . . . Impact . | . . . . . . Slashing . | . . . . . . Piercing . | . . . . . . Sneak Attacks . | . . . . . . Combat Hostiles . | . . . . . . Follow-up Attacks . | . . . . . . Damage Inflicted 1192 | . 379 533 . 280 . Guns 1189 | . 379 530 . 280 . Cannons . | . . . . . . Explosions . | . . . . . . Melee . | . . . . . . Ramming 3 | . . 3 . . . Kinetic 1189 | . 379 530 . 280 . Thermal . | . . . . . . Explosive . | . . . . . . Electromagnetic . | . . . . . . Impact . | . . . . . . Slashing . | . . . . . . Piercing . | . . . . . . Highest Corruption 1 | . 1 1 1 1 . Average Corruption 1 | . 1 1 1 1 . Corruption Purged . | . . . . . . Effects 21 | . 3 2 14 2 . Message Errors 8 | . 1 . 6 1 . Energy Discharges 7 | . 1 1 4 1 . Data Loss (minor) 5 | . . 1 4 . . Targeting Errors 1 | . 1 . . . . Overload Shots . | . . . . . . Overflow Damage . | . . . . . . Projectiles . | . . . . . . Explosions . | . . . . . . Melee . | . . . . . . Knockbacks . | . . . . . . Impact . | . . . . . . Kinetic . | . . . . . . Secondary . | . . . . . . Self-Inflicted Damage . | . . . . . . Shots . | . . . . . . Rammed 3 | . . 3 . . . Targets Rammed 3 | . . 3 . . . Kicked . | . . . . . . Crushed . | . . . . . . Highest Temperature 8 | . 8 . . 7 . Average Temperature 3 | . 3 . . 4 . Received Heat Transfer 279 | . 75 69 . 117 18 Siege Activations . | . . . . . . Robots Corrupted . | . . . . . . Combat Hostiles . | . . . . . . Parts Fried . | . . . . . . Impact Corruptions . | . . . . . . Robots Melted . | . . . . . . Combat Hostiles . | . . . . . . Parts Melted . | . . . . . . Heat Transferred . | . . . . . . Parts Sabotaged . | . . . . . . Parts Stolen . | . . . . . . Parts Stripped . | . . . . . . Power Chain Reactions . | . . . . . . Missiles Intercepted . | . . . . . . Alert | -11 -10 -10 -10 -9 -8 ------- Run | Scr Mat Min Exi Min Mat Peak Influence 100 | . 72 100 . 50 13 Average Influence 34 | . 33 39 . 36 13 Maximum Alert Level . | . . . . . . Low Security (%) 100 | 100 100 100 . 100 100 Level 1 . | . . . . . . Level 2 . | . . . . . . Level 3 . | . . . . . . Level 4 . | . . . . . . Level 5 . | . . . . . . High Security . | . . . . . . Max Security . | . . . . . . Squads Dispatched . | . . . . . . Investigation . | . . . . . . Extermination . | . . . . . . Reinforcement . | . . . . . . Assault . | . . . . . . Garrison . | . . . . . . Intercept . | . . . . . . Construction Impeded . | . . . . . . Haulers Reinforced . | . . . . . . Stealth | -11 -10 -10 -10 -9 -8 --------- Run | Scr Mat Min Exi Min Mat Distress Signals . | . . . . . . Communications Jammed . | . . . . . . Distress Signals . | . . . . . . Times Spotted 43 | . 13 20 . 4 6 Peak Tracking Total 11 | . 3 11 . 2 6 Tactical Retreats 4 | . 1 2 . 1 . Traps | -11 -10 -10 -10 -9 -8 ------- Run | Scr Mat Min Exi Min Mat Traps Triggered 4 | . 4 . . . . Indirectly . | . . . . . . Trap Hack Attempts . | . . . . . . Triggered . | . . . . . . Disarmed . | . . . . . . Reprogrammed 6 | . 6 . . . . Reused . | . . . . . . Traps Extracted . | . . . . . . Installed . | . . . . . . Triggered . | . . . . . . Machines | -11 -10 -10 -10 -9 -8 ---------- Run | Scr Mat Min Exi Min Mat Machines Disabled . | . . . . . . Max in Single Turn . | . . . . . . Machines Sabotaged . | . . . . . . Garrisons Compromised . | . . . . . . Overloaded Fab Kills . | . . . . . . Fab Network Shutdowns . | . . . . . . Hacking | -11 -10 -10 -10 -9 -8 --------- Run | Scr Mat Min Exi Min Mat Machines Accessed 12 | . 7 . 4 . 1 Terminals 7 | . 6 . . . 1 Fabricators . | . . . . . . Repair Stations . | . . . . . . Recycling Units 1 | . 1 . . . . Scanalyzers . | . . . . . . Garrison Access . | . . . . . . Total Hacks 88 | . 31 . 48 . 9 Successful 84 | . 30 . 48 . 6 Failed 4 | . 1 . . . 3 Catastrophic . | . . . . . . Database Lockouts . | . . . . . . Manual 22 | . 12 . 2 . 8 Terminals 38 | . 29 . . . 9 Fabricators . | . . . . . . Repair Stations . | . . . . . . Recycling Units 2 | . 2 . . . . Scanalyzers . | . . . . . . Garrison Access . | . . . . . . Terminal Hacks 82 | . 28 . 48 . 6 Record 52 | . 4 . 48 . . Prototype ID Bank 3 | . 3 . . . . Level Access Points 2 | . 1 . . . 1 Branch Access Points 2 | . 1 . . . 1 Emergency Access Points 3 | . 2 . . . 1 Machine Index 2 | . 2 . . . . Terminal Index 2 | . 1 . . . 1 Scanalyzer Index 2 | . 2 . . . . Alert Level 1 | . 1 . . . . Unreport Threat 1 | . 1 . . . . Locate Traps 3 | . 2 . . . 1 Reprogram Traps 2 | . 2 . . . . Dispatch Records 2 | . 1 . . . 1 Security Status 1 | . 1 . . . . Reinforcement Status 1 | . 1 . . . . Hauler Manifests 1 | . 1 . . . . Zone Layout 2 | . 2 . . . . Fabricator Hacks . | . . . . . . Repair Station Hacks . | . . . . . . Recycling Unit Hacks 2 | . 2 . . . . Process 1 | . 1 . . . . Report Inventory 1 | . 1 . . . . Scanalyzer . | . . . . . . Garrison Access Hacks . | . . . . . . Unauthorized Hacks . | . . . . . . Terminals . | . . . . . . Fabricators . | . . . . . . Repair Stations . | . . . . . . Recycling Units . | . . . . . . Scanalyzers . | . . . . . . Garrison Access . | . . . . . . Data Cores Recovered . | . . . . . . Used . | . . . . . . Hacking Detections 7 | . 6 . . . 1 Full Trace Events 2 | . 2 . . . . Feedback Events 1 | . 1 . . . . Corruption 1 | . 1 . . . . Feedback Blocked . | . . . . . . Robot Schematics Acquired . | . . . . . . Robots Built . | . . . . . . Matter . | . . . . . . Time . | . . . . . . Total Robot Build Rating . | . . . . . . Part Schematics Acquired . | . . . . . . Parts Built . | . . . . . . Matter . | . . . . . . Time . | . . . . . . Total Part Build Rating . | . . . . . . Parts Repaired . | . . . . . . Time . | . . . . . . Parts Recycled . | . . . . . . Recycled Matter . | . . . . . . Retrieved Matter . | . . . . . . Retrieved Components . | . . . . . . Parts Scanalyzed . | . . . . . . Part Schematics Acquired . | . . . . . . Parts Damaged . | . . . . . . Bothacking | -11 -10 -10 -10 -9 -8 ------------ Run | Scr Mat Min Exi Min Mat Used RIF Installer . | . . . . . . Robots Hacked . | . . . . . . Non-combat . | . . . . . . Combat . | . . . . . . Robot Hacks Applied . | . . . . . . Relay Couplers Released . | . . . . . . Robots Rewired . | . . . . . . Allies Hacked . | . . . . . . Hacks Repelled . | . . . . . . Allies | -11 -10 -10 -10 -9 -8 -------- Run | Scr Mat Min Exi Min Mat Total Allies 1 | . . 1 . . . Largest Group 1 | . . 1 . . . Highest-Rated Group 31 | . . 31 . . . Highest-Rated Ally 31 | . . 31 . . . Total Orders . | . . . . . . Ally Attacks 1 | . . 1 . . . Total Damage 20 | . . 20 . . . Kills 1 | . . 1 . . . Allies Corrupted . | . . . . . . Allies Melted . | . . . . . . Intel | -11 -10 -10 -10 -9 -8 ------- Run | Scr Mat Min Exi Min Mat Robot Analysis Total . | . . . . . . Derelict Logs Recovered 2 | . . 2 . . . Drone Launches . | . . . . . . Drone Recoveries . | . . . . . . Exploration | -11 -10 -10 -10 -9 -8 ------------- Run | Scr Mat Min Exi Min Mat Turns Passed 5972 | 79 903 1121 3341 383 145 Spaces Moved 2429 | 63 470 575 1067 180 74 Core 35 | 35 . . . . . Treads 2394 | 28 470 575 1067 180 74 Legs . | . . . . . . Wheels . | . . . . . . Hover . | . . . . . . Flight . | . . . . . . Fastest Speed 50 | 50 160 160 160 160 160 Average Speed 158 | 109 160 160 160 160 165 Slowest Speed 170 | 160 160 160 160 160 170 Overloaded Moves . | . . . . . . Propulsion Burnouts . | . . . . . . Robots Hopped . | . . . . . . Cave-ins Triggered . | . . . . . . Exploration Rate (%) 50 | 4 77 83 95 34 9 Regions Visited 5 Branch Regions 3 Pre-discovered Areas 2 | . . . 1 1 . Known Exits Taken 5 | 1 1 1 1 1 . Unknown Exits Taken . | . . . . . . Scrap Searched 1 | . . 1 . . . Spaces Dug . | . . . . . . Terrain Destroyed . | . . . . . . Melee . | . . . . . . Projectile . | . . . . . . AOE . | . . . . . . Actions | -11 -10 -10 -10 -9 -8 --------- Run | Scr Mat Min Exi Min Mat Total 4427 | 71 578 730 2700 252 96 Wait 1848 | 5 58 90 1627 50 18 Move 2424 | 62 469 574 1066 179 74 Hop . | . . . . . . Pick Up . | . . . . . . Fast Attach 15 | 4 1 5 3 . 2 Attach . | . . . . . . Detach . | . . . . . . Swap . | . . . . . . Drop 10 | . 1 4 3 . 2 Fire 111 | . 43 44 1 23 . Melee . | . . . . . . Ram . | . . . . . . Kick . | . . . . . . Crush 3 | . . 3 . . . Escape Stasis . | . . . . . . Rewire . | . . . . . . Trap . | . . . . . . Miscellaneous 16 | . 6 10 . . . Route ------- -11/Scrapyard -10/Materials (discovered 5 exits: *Mat x3 / *Min x2) -10/Mines (discovered 3 exits: *Mat x2 / *Exi) -10/Exiles (discovered 2 exits: *Min x2) -9/Mines -8/Materials (discovered 4 exits: Fac x3 / Sto) History --------- Turn | Location | Event 3 | -11/Scrapyard | Identified exit to Materials 3 | -11/Scrapyard | Discovered exit to Materials (range 16) 80 | -11/Scrapyard | Entered Materials 104 | -10/Materials | Identified exit to Mines 104 | -10/Materials | Discovered exit to Mines (range 16) 317 | -10/Materials | Build established: Hacker-Mutant 330 | -10/Materials | Identified exit to Materials 330 | -10/Materials | Discovered exit to Materials (range 15) 426 | -10/Materials | Discovered exit to Mines (range 6) 599 | -10/Materials | Discovered exit to Materials (range 13) 745 | -10/Materials | Discovered exit to Materials (range 17) 983 | -10/Materials | Entered Mines 1056 | -10/Mines | Assisted by bots powering up and referring to "LRC-V3" 1057 | -10/Mines | Assembled infested the area 1108 | -10/Mines | Core integrity fell below 50% 1180 | -10/Mines | Learned Materials stockpile data 1304 | -10/Mines | Found a damaged Exp. Sensor Array with a note attached 1314 | -10/Mines | Found Prototype Device 1314 | -10/Mines | Identified Exp. Sensor Array 1372 | -10/Mines | Deemed a non-threat by the Exiles lab entrance 1372 | -10/Mines | Identified exit to Exiles 1372 | -10/Mines | Discovered exit to Exiles (range 5) 1423 | -10/Mines | Discovered exit to Materials (range 8) 1452 | -10/Mines | Reached level 2 1575 | -10/Mines | Discovered exit to Materials (range 5) 1580 | -10/Mines | Received a Mining Laser from a helpful Derelict 1642 | -10/Mines | Learned Materials garrison access intel 1692 | -10/Mines | Upgraded with Utility slot (x1) 1952 | -10/Mines | Core integrity fell below 20% 2104 | -10/Mines | Entered Exiles 2125 | -10/Exiles | Identified exit to Mines 2125 | -10/Exiles | Discovered exit to Mines (range 18) 2148 | -10/Exiles | Met 8R-AWN 2185 | -10/Exiles | Met EX-HEX 2273 | -10/Exiles | Met EX-DEC 2309 | -10/Exiles | Visited The Gauntlet 2545 | -10/Exiles | Met EX-BIN 2869 | -10/Exiles | Learned location of Zion (-7) 2944 | -10/Exiles | Discovered exit to Mines (range 15) 5445 | -10/Exiles | Entered Mines 5447 | -9/Mines | Reached level 3 5447 | -9/Mines | Upgraded with Utility slot (x1) 5588 | -9/Mines | Identified exit to Materials 5588 | -9/Mines | Discovered exit to Materials (range 14) 5615 | -9/Mines | Learned location of Storage (-8) 5828 | -9/Mines | Entered Materials 5829 | -8/Materials | Core integrity fell below 50% 5829 | -8/Materials | Core integrity fell below 20% 5830 | -8/Materials | Loaded intel: 1 garrison access location 5830 | -8/Materials | Reached level 4 5830 | -8/Materials | Reached level 5 5830 | -8/Materials | Reached level 6 5830 | -8/Materials | Upgraded with Weapon slot (x2) 5880 | -8/Materials | Identified exit to Factory 5880 | -8/Materials | Identified exit to Storage 5973 | -8/Materials | Destroyed by S-10 Pest with Light Assault Rifle Last Messages --------------- No traps found in local area. >>Access(Main) Found 3 level access points to Factory: (85,89) (9,82) (12,10) Map updated. >>Access(Emergency) No emergency access doors found in local area. >>Access(Branch) Found 1 branch access point: (28,36) Storage Map updated. >>Index(Terminals) Found 11 terminals. Downloaded coordinate data. Dropped Lgt. Treads. Acquired Arm. Treads. K-01 Serf collects debris. [Achievement: Back For More] Map ----- +----------------------------------------------------+ | | | | | | | | | | | | | | | | | ??????????????????????????????????????????????? | | ??????????????????????????????????????????????? | | ??????????????????????????????????????????????? | | ??????????????????????????????????????????????? | | ??????????????????????????????????????????????? | | ???????????????????????##+????????????????????? | | ?????????????????? ? ???? ????????????????????? | | ????????????????????#?##? ##???#????????#?????? | | ????????????????#??#?##?# ###??##???##??######? | | ?????????????????##????## ##????############### | | ???????????????? ??? ???# #?####?############?# | | ??????????????#? ??" #### ##################### | | ???????????????? ?"" ##?# #?################### | | ????????????? #? """ ##?# ##################### | | ??????????????# ? ?#### ###################?# | | ????????????? ? + ##################### | | ??????????????########### ##################### | | ???????????? ## #@##################### | | ????????????? ## s/ ########## ##### | | ???????????? ? # # ##########""" ##### | | ?????????# # #s###### #""" ##### | | ?????????# T /?b + ###### #""" * ###?# | | ?????????# # # ###### # ##### | | ?????????# # ? # ###### + % ####? | | ????????????? ##[ # ###### ############ | | ????????????? ## # ###### ## ## | | ???????????? ?########### ###### ## ## | | ??????????? ##### ##### ##### # ## | | ????????????? ##### ##### ##### # ## | | ??????????????##### ##### ##### T + ## | | ???????????? ##### ##### ##### #? ## | | ???????????? ? ?### ##### ##### = # ## | | ????????????? #### ?#### ########### ## | | ???????????? ? #### #### + ? ## | | ?????????????? ""####### #################### | | ????????????? ?""# # #################### | | ????????????? T"# # ##################?? | | ????????????? ""# # ##################?# | | ????????????? ""# # #################### | | ????????????????## # # #?##?##### | | ?????????????????? ? # # "" #########? | | ?????????????????+ # # "" ######??#? | +----------------------------------------------------+ Best States ------------- Heat Dissipation 25 Energy Generation 14 Energy Capacity 250 Matter Stores 300 Matter Capacity 300 Sight Range 22 Robot Scan Range 38 Terrain Scan Range 14 Terrain Scan Density 610 Armor Coverage 150 Resistance: KI 35 Resistance: TH 35 Resistance: EX 35 Resistance: EM 35 Resistance: I 35 Resistance: S 35 Resistance: P 35 Evasion (%) 40 Recoil Reduction 1 Offensive Hacking 55 Item Schematics ----------------- None Robot Schematics ------------------ None Fabricated ------------ Nothing Alien Tech Used ----------------- None Achievements -------------- Back For More I Survived The Infestation root@ Challenges ------------ None RPGLIKE | -11 -10 -10 -10 -9 -8 --------- Run | Scr Mat Min Exi Min Mat Levels Raised 5 | . . 1 . 1 3 XP Earned 13898 | 6000 850 1403 200 1166 4279 XP Spent 13375 | 6000 . 1500 . 1450 4425 Upgrades 30 | 8 . 6 . 8 8 Utility Slot 2 | . . 1 . 1 . Weapon Slot 2 | . . . . . 2 Core Integrity 1 | . . . . 1 . Sight Range 6 | . . 3 . . 3 Sensor Range 4 | . . 1 . 1 2 Terrain Scan Density 6 | . . 1 . 5 . Ranged Accuracy 1 | 1 . . . . . Hack Attack % 7 | 7 . . . . . KI Damage % 1 | . . . . . 1 Protomatter Created 146 | . 89 57 . . . Integrity Restored 309 | . 114 195 . . . Core 309 | . 114 195 . . . Protomatter Decayed 77 | . 46 31 . . . Game ------ Seed AlloyAccelerationTerrabomb Manual? 0 Play Time 00:42:56 Cumulative 51.5 hours Start 2019.12.24 @ 23:30:04 End 2019.12.25 @ 00:16:03 Sessions 2 Manual Loads 0 Difficulty Explorer Special Mode Winter2019/RPGLIKE Game No. 50 Rogue 47 Adventurer 0 Explorer 3 Win Type - Total 0 Types 0/0/0/0/0/0/0 Lore% 30 Gallery% 36 Achievement% 32 Wizard Run 0 Options --------- ASCII 1 Keyboard 1 Movement Vi Keybinds 0 Fullscreen 1 Font 18/SmallcapsGlow Map View 76x50 Tactical HUD 0 Map Filters NONE Filters LOW_CONTRAST(47,30,31)|SHIFT_HUE(180) Steam 1 RUN: f6e608a5-de8b-4c58-8f48-c58395417b72